Workbook

Sheet Koszty remontu łazienki
B1: Arkusz kosztów remontu łazienki
B2: UWAGA: Kolumny Różnica w tabeli będą pokazywać, czy kwoty rzeczywiste przekroczyły kwoty szacowane. Czerwone liczby oznaczają przekroczenie (wartość ujemna), a czarne — kwoty mniejsze od szacowanych (wartość dodatnia).
E3: Koszt pozycji (PLN) | H3: Całkowity koszt (PLN)
B4: Obszar | C4: Pozycje | D4: Ilość | E4: Szacowany | F4: Rzeczywisty | G4: Różnica | H4: Szacowany | I4: Rzeczywisty | J4: Różnica
B5: Wanna/prysznic | C5: Wanna, żeliwna, 140 cm, standardowa | D5: 1 | E5: 250.00 zł | F5: =RANDBETWEEN(E5+2,E5+20) -> 256.00 zł | G5: =IFERROR(Koszty[[#This Row],[Szacowany]]-Koszty[[#This Row],[Rzeczywisty]], "") -> -6.00 zł | H5: =IFERROR(Koszty[[#This Row],[Ilość]]*Koszty[[#This Row],[Szacowany]], "") -> 250.00 zł | I5: =IFERROR(Koszty[[#This Row],[Ilość]]*Koszty[[#This Row],[Rzeczywisty]], "") -> 256.00 zł | J5: =IFERROR(Koszty[[#This Row],[Szacowany ]]-Koszty[[#This Row],[Rzeczywisty ]], "") -> -6.00 zł
B6: Wanna/prysznic | C6: Drzwi do kabiny prysznicowej, na zawiasach, standardowe | D6: 1 | E6: 200.00 zł | F6: 208.00 zł | G6: =IFERROR(Koszty[[#This Row],[Szacowany]]-Koszty[[#This Row],[Rzeczywisty]], "") -> -8.00 zł | H6: =IFERROR(Koszty[[#This Row],[Ilość]]*Koszty[[#This Row],[Szacowany]], "") -> 200.00 zł | I6: =IFERROR(Koszty[[#This Row],[Ilość]]*Koszty[[#This Row],[Rzeczywisty]], "") -> 208.00 zł | J6: =IFERROR(Koszty[[#This Row],[Szacowany ]]-Koszty[[#This Row],[Rzeczywisty ]], "") -> -8.00 zł
B7: Wanna/prysznic | C7: Głowica prysznica, standardowa | D7: 1 | E7: 50.00 zł | F7: 59.00 zł | G7: =IFERROR(Koszty[[#This Row],[Szacowany]]-Koszty[[#This Row],[Rzeczywisty]], "") -> -9.00 zł | H7: =IFERROR(Koszty[[#This Row],[Ilość]]*Koszty[[#This Row],[Szacowany]], "") -> 50.00 zł | I7: =IFERROR(Koszty[[#This Row],[Ilość]]*Koszty[[#This Row],[Rzeczywisty]], "") -> 59.00 zł | J7: =IFERROR(Koszty[[#This Row],[Szacowany ]]-Koszty[[#This Row],[Rzeczywisty ]], "") -> -9.00 zł
B8: Wanna/prysznic | C8: Obudowa ściany wanny, standardowa | D8: 1 | E8: 200.00 zł | F8: 216.00 zł | G8: =IFERROR(Koszty[[#This Row],[Szacowany]]-Koszty[[#This Row],[Rzeczywisty]], "") -> -16.00 zł | H8: =IFERROR(Koszty[[#This Row],[Ilość]]*Koszty[[#This Row],[Szacowany]], "") -> 200.00 zł | I8: =IFERROR(Koszty[[#This Row],[Ilość]]*Koszty[[#This Row],[Rzeczywisty]], "") -> 216.00 zł | J8: =IFERROR(Koszty[[#This Row],[Szacowany ]]-Koszty[[#This Row],[Rzeczywisty ]], "") -> -16.00 zł
B9: Szafki | C9: Szafka na lekarstwa, 60 cm, dodatkowa | D9: 1 | E9: 200.00 zł | F9: 204.00 zł | G9: =IFERROR(Koszty[[#This Row],[Szacowany]]-Koszty[[#This Row],[Rzeczywisty]], "") -> -4.00 zł | H9: =IFERROR(Koszty[[#This Row],[Ilość]]*Koszty[[#This Row],[Szacowany]], "") -> 200.00 zł | I9: =IFERROR(Koszty[[#This Row],[Ilość]]*Koszty[[#This Row],[Rzeczywisty]], "") -> 204.00 zł | J9: =IFERROR(Koszty[[#This Row],[Szacowany ]]-Koszty[[#This Row],[Rzeczywisty ]], "") -> -4.00 zł
B10: Szafki | C10: Modułowe szafki na kosmetyki, 75 cm, standardowe | D10: 2 | E10: 100.00 zł | F10: 114.00 zł | G10: =IFERROR(Koszty[[#This Row],[Szacowany]]-Koszty[[#This Row],[Rzeczywisty]], "") -> -14.00 zł | H10: =IFERROR(Koszty[[#This Row],[Ilość]]*Koszty[[#This Row],[Szacowany]], "") -> 200.00 zł | I10: =IFERROR(Koszty[[#This Row],[Ilość]]*Koszty[[#This Row],[Rzeczywisty]], "") -> 228.00 zł | J10: =IFERROR(Koszty[[#This Row],[Szacowany ]]-Koszty[[#This Row],[Rzeczywisty ]], "") -> -28.00 zł
B11: Blaty | C11: Kafelki ceramiczne, dodatkowe (ilość w metrach) | D11: 5 | E11: 22.50 zł | F11: 33.00 zł | G11: =IFERROR(Koszty[[#This Row],[Szacowany]]-Koszty[[#This Row],[Rzeczywisty]], "") -> -10.50 zł | H11: =IFERROR(Koszty[[#This Row],[Ilość]]*Koszty[[#This Row],[Szacowany]], "") -> 112.50 zł | I11: =IFERROR(Koszty[[#This Row],[Ilość]]*Koszty[[#This Row],[Rzeczywisty]], "") -> 165.00 zł | J11: =IFERROR(Koszty[[#This Row],[Szacowany ]]-Koszty[[#This Row],[Rzeczywisty ]], "") -> -52.50 zł
B12: Krany | C12: Kran, wanna, standardowe | D12: 1 | E12: 90.00 zł | F12: 94.00 zł | G12: =IFERROR(Koszty[[#This Row],[Szacowany]]-Koszty[[#This Row],[Rzeczywisty]], "") -> -4.00 zł | H12: =IFERROR(Koszty[[#This Row],[Ilość]]*Koszty[[#This Row],[Szacowany]], "") -> 90.00 zł | I12: =IFERROR(Koszty[[#This Row],[Ilość]]*Koszty[[#This Row],[Rzeczywisty]], "") -> 94.00 zł | J12: =IFERROR(Koszty[[#This Row],[Szacowany ]]-Koszty[[#This Row],[Rzeczywisty ]], "") -> -4.00 zł
B13: Krany | C13: Kran, prysznic, pojedynczy uchwyt, standardowe | D13: 1 | E13: 115.00 zł | F13: 118.00 zł | G13: =IFERROR(Koszty[[#This Row],[Szacowany]]-Koszty[[#This Row],[Rzeczywisty]], "") -> -3.00 zł | H13: =IFERROR(Koszty[[#This Row],[Ilość]]*Koszty[[#This Row],[Szacowany]], "") -> 115.00 zł | I13: =IFERROR(Koszty[[#This Row],[Ilość]]*Koszty[[#This Row],[Rzeczywisty]], "") -> 118.00 zł | J13: =IFERROR(Koszty[[#This Row],[Szacowany ]]-Koszty[[#This Row],[Rzeczywisty ]], "") -> -3.00 zł
B14: Krany | C14: Kran nad zlew, standardowy | D14: 1 | E14: 95.00 zł | F14: 110.00 zł | G14: =IFERROR(Koszty[[#This Row],[Szacowany]]-Koszty[[#This Row],[Rzeczywisty]], "") -> -15.00 zł | H14: =IFERROR(Koszty[[#This Row],[Ilość]]*Koszty[[#This Row],[Szacowany]], "") -> 95.00 zł | I14: =IFERROR(Koszty[[#This Row],[Ilość]]*Koszty[[#This Row],[Rzeczywisty]], "") -> 110.00 zł | J14: =IFERROR(Koszty[[#This Row],[Szacowany ]]-Koszty[[#This Row],[Rzeczywisty ]], "") -> -15.00 zł
B15: Pokrycie podłogi | C15: Kafelki ceramiczne, standardowe (ilość w metrach kwadratowych) | D15: 35 | E15: 12.00 zł | F15: 18.00 zł | G15: =IFERROR(Koszty[[#This Row],[Szacowany]]-Koszty[[#This Row],[Rzeczywisty]], "") -> -6.00 zł | H15: =IFERROR(Koszty[[#This Row],[Ilość]]*Koszty[[#This Row],[Szacowany]], "") -> 420.00 zł | I15: =IFERROR(Koszty[[#This Row],[Ilość]]*Koszty[[#This Row],[Rzeczywisty]], "") -> 630.00 zł | J15: =IFERROR(Koszty[[#This Row],[Szacowany ]]-Koszty[[#This Row],[Rzeczywisty ]], "") -> -210.00 zł
B16: Wyposażenie | C16: Wieszak na ręcznik, standardowy | D16: 2 | E16: 15.00 zł | F16: 30.00 zł | G16: =IFERROR(Koszty[[#This Row],[Szacowany]]-Koszty[[#This Row],[Rzeczywisty]], "") -> -15.00 zł | H16: =IFERROR(Koszty[[#This Row],[Ilość]]*Koszty[[#This Row],[Szacowany]], "") -> 30.00 zł | I16: =IFERROR(Koszty[[#This Row],[Ilość]]*Koszty[[#This Row],[Rzeczywisty]], "") -> 60.00 zł | J16: =IFERROR(Koszty[[#This Row],[Szacowany ]]-Koszty[[#This Row],[Rzeczywisty ]], "") -> -30.00 zł
B17: Wyposażenie | C17: Uchwyt na papier toaletowy | D17: 1 | E17: 10.00 zł | F17: 14.00 zł | G17: =IFERROR(Koszty[[#This Row],[Szacowany]]-Koszty[[#This Row],[Rzeczywisty]], "") -> -4.00 zł | H17: =IFERROR(Koszty[[#This Row],[Ilość]]*Koszty[[#This Row],[Szacowany]], "") -> 10.00 zł | I17: =IFERROR(Koszty[[#This Row],[Ilość]]*Koszty[[#This Row],[Rzeczywisty]], "") -> 14.00 zł | J17: =IFERROR(Koszty[[#This Row],[Szacowany ]]-Koszty[[#This Row],[Rzeczywisty ]], "") -> -4.00 zł
B18: Oświetlenie | C18: Oświetlenie podtynkowe, standardowe | D18: 4 | E18: 25.00 zł | F18: 29.00 zł | G18: =IFERROR(Koszty[[#This Row],[Szacowany]]-Koszty[[#This Row],[Rzeczywisty]], "") -> -4.00 zł | H18: =IFERROR(Koszty[[#This Row],[Ilość]]*Koszty[[#This Row],[Szacowany]], "") -> 100.00 zł | I18: =IFERROR(Koszty[[#This Row],[Ilość]]*Koszty[[#This Row],[Rzeczywisty]], "") -> 116.00 zł | J18: =IFERROR(Koszty[[#This Row],[Szacowany ]]-Koszty[[#This Row],[Rzeczywisty ]], "") -> -16.00 zł
B19: Zlewy | C19: Sedes, standardowy | D19: 2 | E19: 60.00 zł | F19: 73.00 zł | G19: =IFERROR(Koszty[[#This Row],[Szacowany]]-Koszty[[#This Row],[Rzeczywisty]], "") -> -13.00 zł | H19: =IFERROR(Koszty[[#This Row],[Ilość]]*Koszty[[#This Row],[Szacowany]], "") -> 120.00 zł | I19: =IFERROR(Koszty[[#This Row],[Ilość]]*Koszty[[#This Row],[Rzeczywisty]], "") -> 146.00 zł | J19: =IFERROR(Koszty[[#This Row],[Szacowany ]]-Koszty[[#This Row],[Rzeczywisty ]], "") -> -26.00 zł
B20: Inne | D20: 1 | E20: 20.00 zł | F20: 25.00 zł | G20: =IFERROR(Koszty[[#This Row],[Szacowany]]-Koszty[[#This Row],[Rzeczywisty]], "") -> -5.00 zł | H20: =IFERROR(Koszty[[#This Row],[Ilość]]*Koszty[[#This Row],[Szacowany]], "") -> 20.00 zł | I20: =IFERROR(Koszty[[#This Row],[Ilość]]*Koszty[[#This Row],[Rzeczywisty]], "") -> 25.00 zł | J20: =IFERROR(Koszty[[#This Row],[Szacowany ]]-Koszty[[#This Row],[Rzeczywisty ]], "") -> -5.00 zł
B21: Suma częściowa | E21: =SUBTOTAL(109,Koszty[Szacowany]) -> 1,464.50 zł | F21: =SUBTOTAL(109,Koszty[Rzeczywisty]) -> 1,601.00 zł | G21: =SUBTOTAL(109,Koszty[Różnica]) -> -136.50 zł | H21: =SUBTOTAL(109,Koszty[[Szacowany ]]) -> 2,212.50 zł | I21: =SUBTOTAL(109,Koszty[[Rzeczywisty ]]) -> 2,649.00 zł | J21: =SUBTOTAL(109,Koszty[[Różnica ]]) -> -436.50 zł
B22: Nieoczekiwane koszty (dodaj 30% kosztów szacowanych) | E22: =IFERROR(Koszty[[#Totals],[Szacowany]]*0.3, "") -> 439.35 zł | H22: =IFERROR(Koszty[[#Totals],[Szacowany ]]*0.3, "") -> 663.75 zł
B23: Koszty całkowite | E23: =IFERROR(SUM(E21:E21), "") -> 1,464.50 zł | H23: =IFERROR(SUM(Koszty[[#Totals],[Szacowany ]],Nadwyżka), "") -> 2,876.25 zł
